Cogmind - Beta 11.1 @@@ ROGUE MODE // 2022.04.24 @ 18:33:25 Player: Azken Zutik Result: Destroyed by EX-DEC with AWS/EX-DEC Performance ------------- Evolutions (1) 500 Regions Visited (5) 1000 Robots Destroyed (84) 420 Value Destroyed (1558) 1558 Prototype IDs (41) 820 Alien Tech Used (0) 0 Bonus (557) 557 TOTAL SCORE: 4855 Bonus ------- High Alert Combat Kills 197 Follower Combat Kills 60 Aligned with FarCom 300 Cogmind --------- Core Integrity 0/400 Matter 81/300 Energy 280/280 System Corruption 23% Temperature Cool (0) Movement Treading (240) Ox1 Location -9/Exiles Parts ------- > --- POWER (1) -------- Heavy Ion Engine > --- PROPULSION (3) --- Light Treads Light Treads > --- UTILITY (3) ------ High-capacity Storage Unit Shield Generator > --- WEAPON (2) ------- AWS/Thermal > --- INVENTORY (20) --- Heavy Ion Engine Light Treads Light Armor Plating Light Armor Plating Light Armor Plating Improved Assault Rifle Minigun Signal Generator Peak State ------------ > --- POWER ------------ Heavy Ion Engine > --- PROPULSION ------- Light Treads Light Treads Improved Treads > --- UTILITY ---------- High-capacity Storage Unit Hardened Light Armor Plating Shield Generator > --- WEAPON ----------- AWS/Thermal > --- INVENTORY -------- Heavy Ion Engine Light Treads Light Treads Light Treads Light Armor Plating Light Armor Plating Light Armor Plating Medium Armor Plating Improved Assault Rifle Improved Assault Rifle Minigun Minigun Minigun EMP Blaster Signal Generator [Rating: 31] Favorites ----------- Power Heavy Ion Engine Engine Heavy Ion Engine Propulsion Light Treads Treads Light Treads Leg Aluminum Leg Utility Hardened Light Armor Plating Device Shield Generator Storage High-capacity Storage Unit Protection Hardened Light Armor Plating Weapon Improved Assault Rifle Energy Gun AWS/Thermal Ballistic Gun Improved Assault Rifle Launcher Grenade Launcher Special Melee Weapon Datajack Build | -11 -10 -10 -9 -9 -9 ------- Run | Scr Mat Min Mat Min Exi Slots Evolved 2 | . . . 2 . . Power . | . . . . . . Propulsion 1 | . . . 1 . . Utility 1 | . . . 1 . . Weapon . | . . . . . . Parts Attached 85 | 3 6 1 43 2 30 Power 7 | . . 1 5 . 1 Engine 7 | . . 1 5 . 1 Core . | . . . . . . Reactor . | . . . . . . Propulsion 19 | 3 . . 12 . 4 Treads 18 | 3 . . 11 . 4 Leg 1 | . . . 1 . . Wheel . | . . . . . . Hover . | . . . . . . Flight . | . . . . . . Utility 22 | . 3 . 11 . 8 Device 4 | . 1 . 2 . 1 Storage 6 | . 1 . 2 . 3 Processor . | . . . . . . Hackware . | . . . . . . Protection 12 | . 1 . 7 . 4 Artifact . | . . . . . . Weapon 37 | . 3 . 15 2 17 Energy Gun 5 | . . . 1 . 4 Energy Cannon . | . . . . . . Ballistic Gun 22 | . 1 . 11 1 9 Ballistic Cannon . | . . . . . . Launcher 9 | . 2 . 3 1 3 Special Weapon . | . . . . . . Impact Weapon . | . . . . . . Slashing Weapon . | . . . . . . Piercing Weapon . | . . . . . . Special Melee Weapon 1 | . . . . . 1 Unidentified Prototypes 4 | . . . 4 . . Corrupted Parts 1 | . . . . . 1 System Corruption 10 | . . . . . 10 Parts Lost 13 | . . . 7 . 6 Power 1 | . . . 1 . . Propulsion 4 | . . . 1 . 3 Utility 4 | . . . 2 . 2 Weapon 4 | . . . 3 . 1 Highest Loss Streak 4 | . . . 4 . 3 To Critical Strikes 1 | . . . . . 1 Average Slot Usage (%) 95 | . 98 100 98 100 88 Engine 11 | . 14 14 10 11 11 Treads 31 | . 28 28 31 33 32 Device 1 | . 8 . . . 3 Storage 11 | . 14 14 11 11 11 Protection 18 | . 4 14 20 22 18 Ballistic Gun 14 | . 21 14 21 22 1 Launcher 2 | . 5 14 . . 2 Special Melee Weapon 2 | . . . . . 6 Naked Turns . | . . . . . . Heaviest Build 65 | 14 23 23 64 62 65 Greatest Support 66 | 40 40 40 66 66 66 Greatest Overweight (x) 1 | . . . 1 . 1 Average Overweight (x) . | . . . . . . Largest Inventory Capacity 20 | 8 10 10 20 20 20 Average Capacity 16 | 8 9 10 14 20 20 Most Carried 20 | 6 10 10 20 20 20 Average Carried 14 | 3 7 9 13 20 16 Final Capacity 20 | 8 10 10 20 20 20 Final Carried 20 | 4 10 10 20 20 8 Class Distribution -------------------- 97% | Mutant Dominant Class ---------------- Mutant | -10/Materials Mutant | -10/Mines Mutant | -9/Materials Mutant | -9/Mines Mutant | -9/Exiles Resources | -11 -10 -10 -9 -9 -9 ----------- Run | Scr Mat Min Mat Min Exi Matter Collected 2293 | 269 227 36 1135 132 494 Remotely . | . . . . . . Salvage Created 2538 | 168 152 25 1903 61 229 Parts 193 | 20 16 4 138 5 10 Haulers Intercepted 6 | . 2 . 4 . . Recyclers Shooed 3 | . . . 3 . . Parts Field Recycled . | . . . . . . Retrieved Matter . | . . . . . . Parts Self-Destructed . | . . . . . . Prevented . | . . . . . . Kills | -11 -10 -10 -9 -9 -9 ------- Run | Scr Mat Min Mat Min Exi Combat Hostiles Destroyed 53 | . 5 6 38 . 4 Guns 32 | . . . 31 . 1 AOE 21 | . 5 6 7 . 3 Classes Destroyed 13 | 2 5 . 3 . 3 Worker 7 | . 2 . 5 . . Builder 3 | . . . 3 . . Tunneler 5 | 5 . . . . . Hauler 6 | . 2 . 4 . . Recycler 5 | 1 . . 3 1 . Operator 1 | . . . 1 . . Turret 1 | . . . . . 1 Watcher 5 | . 1 . 4 . . Swarmer 20 | . 3 6 11 . . Grunt 19 | . 2 . 17 . . Sentry 10 | . . . 10 . . Zionite 2 | . . . . . 2 Assembled 3 | . . . . . 3 Best Kill Streak 9 | 4 6 3 9 1 2 Combat Bots Only 8 | . 4 3 8 . 2 Max Kills in Single Turn 3 | 1 2 2 3 1 1 Gunslinging . | . . . . . . Exploded 2 | . 2 2 2 . 1 Melee . | . . . . . . Uniques/NPCs Destroyed 1 | . . . . . 1 8R-AWN (-9/Exiles) Combat | -11 -10 -10 -9 -9 -9 -------- Run | Scr Mat Min Mat Min Exi Damage Taken 4115 | . 230 66 1852 . 1967 Core 465 | . 57 . 98 . 310 Absorbed by Shields 348 | . . . 99 . 249 Regen/Repaired (Parts) 246 | . . . 246 . . Core Remaining (%) 88 | 100 . 77 . . . Volleys Fired 199 | 13 16 5 116 2 47 Largest 2 | 2 2 1 2 2 2 Hottest 70 | 70 40 30 46 46 50 Shots Fired 374 | 26 22 5 217 5 99 Gun 328 | 26 12 . 208 5 77 Cannon . | . . . . . . Launcher 46 | . 10 5 9 . 22 Special . | . . . . . . Kinetic 285 | 13 12 . 208 5 47 Thermal 43 | 13 . . . . 30 Explosive 24 | . 10 5 9 . . Electromagnetic 22 | . . . . . 22 Robot Hit Streak 38 | 10 12 . 38 1 25 Robot Miss Streak 4 | 2 3 2 4 1 3 Penetration Max . | . . . . . . Secondary Targets 3 | . . . 3 . . Max Gunslinging Chain 1 | . . . 1 . . Autonomous 30 | . . . . . 30 Shots Hit Robots 245 | 18 10 . 151 2 64 Core Hits 126 | 7 13 6 77 2 21 Critical Kills . | . . . . . . Critical Parts Destroyed . | . . . . . . Critical Strikes 2 | . . . 1 . 1 Destroy 2 | . . . 1 . 1 Melee Attacks 4 | . . . . . 4 Impact . | . . . . . . Slashing . | . . . . . . Piercing . | . . . . . . Sneak Attacks 4 | . . . . . 4 Combat Hostiles . | . . . . . . Follow-up Attacks . | . . . . . . Damage Inflicted 5828 | 233 530 374 3075 71 1545 Guns 3820 | 228 59 . 2181 45 1307 Cannons . | . . . . . . Explosions 1921 | . 471 346 866 . 238 Melee . | . . . . . . Ramming 87 | 5 . 28 28 26 . Kinetic 2886 | 102 59 . 2181 45 499 Thermal 1186 | 126 . . 228 . 832 Explosive 1455 | . 471 346 638 . . Electromagnetic 214 | . . . . . 214 Impact . | . . . . . . Slashing . | . . . . . . Piercing . | . . . . . . Highest Corruption 23 | . . . 7 7 23 Average Corruption 7 | . . . 5 7 10 Corruption Purged . | . . . . . . Corruption Blocked . | . . . . . . Effects 182 | . . . 65 32 85 Message Errors 44 | . . . 12 8 24 Matter Fused 46 | . . . 18 6 22 Heat Flow Errors 31 | . . . 10 5 16 Energy Discharges 18 | . . . 8 4 6 Data Loss (minor) 22 | . . . 8 5 9 Data Loss (major) 6 | . . . 2 2 2 Misfires 5 | . . . 3 1 1 Alerts 7 | . . . 3 1 3 Weapon Failures 3 | . . . 1 . 2 Overload Shots . | . . . . . . Overflow Damage 92 | . 4 . 82 . 6 Projectiles . | . . . . . . Explosions 92 | . 4 . 82 . 6 Melee . | . . . . . . Knockbacks . | . . . . . . Impact . | . . . . . . Kinetic . | . . . . . . Secondary . | . . . . . . Self-Inflicted Damage 220 | . 73 17 105 . 25 Shots 11 | . 5 1 2 . 3 Rammed 15 | 3 . 4 5 3 . Targets Rammed 17 | 3 1 4 6 3 . Kicked . | . . . . . . Crushed 2 | . 1 . 1 . . Highest Temperature 429 | 72 1 . 327 276 429 Average Temperature 104 | 29 1 . 91 105 135 Received Heat Transfer 703 | . 36 . 627 . 40 Effects 2 | . . . . . 2 Energy Bleed 2 | . . . . . 2 Siege Activations . | . . . . . . Robots Corrupted 1 | . . . . . 1 Combat Hostiles . | . . . . . . Parts Fried . | . . . . . . Impact Corruptions . | . . . . . . Robots Melted . | . . . . . . Combat Hostiles . | . . . . . . Parts Melted . | . . . . . . Heat Transferred 934 | 370 . . 150 . 414 Parts Sabotaged . | . . . . . . Parts Stolen . | . . . . . . Parts Stripped . | . . . . . . Power Chain Reactions 1 | . . . . . 1 Missiles Intercepted . | . . . . . . Alert | -11 -10 -10 -9 -9 -9 ------- Run | Scr Mat Min Mat Min Exi Peak Influence 733 | 30 337 267 733 315 . Initial 262 | . 19 58 27 262 . Average 330 | 14 250 127 503 155 . Maximum Alert Level 3 | . 1 1 3 1 . Low Security (%) 37 | 100 29 90 6 62 . Level 1 29 | . 70 9 26 37 . Level 2 31 | . . . 62 . . Level 3 1 | . . . 3 . . Level 4 . | . . . . . . Level 5 . | . . . . . . High Security . | . . . . . . Max Security . | . . . . . . Squads Dispatched 6 | . 1 . 5 . . Investigation 1 | . . . 1 . . Extermination . | . . . . . . Reinforcement 5 | . 1 . 4 . . Assault . | . . . . . . Garrison . | . . . . . . Intercept . | . . . . . . Searches Triggered . | . . . . . . Construction Impeded . | . . . . . . Haulers Reinforced . | . . . . . . Active Scanning Responses . | . . . . . . Cargo Convoy Interrupts . | . . . . . . Stealth | -11 -10 -10 -9 -9 -9 --------- Run | Scr Mat Min Mat Min Exi Distress Signals 8 | . 1 . 7 . . Communications Jammed . | . . . . . . Distress Signals . | . . . . . . Times Spotted 107 | . 9 6 53 2 37 Peak Tracking Total 10 | . 6 3 10 2 9 Tactical Retreats 8 | . . . . . 8 Traps | -11 -10 -10 -9 -9 -9 ------- Run | Scr Mat Min Mat Min Exi Traps Triggered 3 | . 1 . 2 . . Indirectly . | . . . . . . Trap Hack Attempts . | . . . . . . Triggered . | . . . . . . Disarmed . | . . . . . . Reprogrammed . | . . . . . . Reused . | . . . . . . Traps Extracted . | . . . . . . Installed . | . . . . . . Triggered . | . . . . . . Exploded 2 | . . . . . 2 Machines | -11 -10 -10 -9 -9 -9 ---------- Run | Scr Mat Min Mat Min Exi Machines Disabled 12 | . . . 2 . 10 Max in Single Turn 3 | . . . 1 . 3 Machines Sabotaged . | . . . . . . Garrisons Compromised . | . . . . . . Overloaded Fab Kills . | . . . . . . Hacking | -11 -10 -10 -9 -9 -9 --------- Run | Scr Mat Min Mat Min Exi Machines Accessed 8 | . . 1 5 . 2 Terminals 5 | . . 1 4 . . Fabricators . | . . . . . . Repair Stations 1 | . . . 1 . . Recycling Units . | . . . . . . Scanalyzers . | . . . . . . Garrison Access . | . . . . . . Total Hacks 19 | . . 5 12 . 2 Successful 9 | . . 2 5 . 2 Failed 10 | . . 3 7 . . Catastrophic . | . . . . . . Database Lockouts . | . . . . . . Manual 14 | . . 5 8 . 1 Terminals 13 | . . 5 8 . . Fabricators . | . . . . . . Repair Stations 4 | . . . 4 . . Recycling Units . | . . . . . . Scanalyzers . | . . . . . . Garrison Access . | . . . . . . Terminal Hacks 5 | . . 2 1 . 2 Record 1 | . . . . . 1 Robot Analysis 3 | . . 2 1 . . EX-Prototype ID Bank 1 | . . . . . 1 Fabricator Hacks . | . . . . . . Repair Station Hacks 4 | . . . 4 . . Scan Component 2 | . . . 2 . . Repair 2 | . . . 2 . . Recycling Unit Hacks . | . . . . . . Scanalyzer . | . . . . . . Garrison Access Hacks . | . . . . . . Unauthorized Hacks . | . . . . . . Terminals . | . . . . . . Fabricators . | . . . . . . Repair Stations . | . . . . . . Recycling Units . | . . . . . . Scanalyzers . | . . . . . . Garrison Access . | . . . . . . Data Cores Recovered . | . . . . . . Used . | . . . . . . Hacking Detections 6 | . . 1 5 . . Full Trace Events 1 | . . . 1 . . Feedback Events . | . . . . . . Feedback Blocked . | . . . . . . Robot Schematics Acquired . | . . . . . . Robots Built . | . . . . . . Authchips . | . . . . . . Time . | . . . . . . Total Robot Build Rating . | . . . . . . Part Schematics Acquired . | . . . . . . Parts Built . | . . . . . . Authchips . | . . . . . . Time . | . . . . . . Total Part Build Rating . | . . . . . . Parts Repaired 2 | . . . 2 . . Time 52 | . . . 52 . . Parts Recycled . | . . . . . . Recycled Matter . | . . . . . . Retrieved Matter . | . . . . . . Retrieved Components . | . . . . . . Parts Scanalyzed . | . . . . . . Part Schematics Acquired . | . . . . . . Parts Damaged . | . . . . . . Bothacking | -11 -10 -10 -9 -9 -9 ------------ Run | Scr Mat Min Mat Min Exi Used RIF Installer . | . . . . . . Robots Hacked 4 | . . . . . 4 Non-combat 3 | . . . . . 3 Combat 1 | . . . . . 1 Robot Hacks Applied 4 | . . . . . 4 parse_system 4 | . . . . . 4 Relay Couplers Released . | . . . . . . Fabnet Peak Effective % . | . . . . . . Robots Rewired . | . . . . . . Allies Hacked . | . . . . . . Hacks Repelled . | . . . . . . Allies | -11 -10 -10 -9 -9 -9 -------- Run | Scr Mat Min Mat Min Exi Total Allies 1 | . . . . 1 . Largest Group 1 | . . . . 1 . Highest-Rated Group 31 | . . . . 31 . Highest-Rated Ally 31 | . . . . 31 . Total Orders . | . . . . . . Ally Attacks 10 | . . . . 10 . Total Damage 146 | . . . . 146 . Kills 2 | . . . . 2 . Allies Corrupted . | . . . . . . Allies Melted . | . . . . . . Intel | -11 -10 -10 -9 -9 -9 ------- Run | Scr Mat Min Mat Min Exi Robot Analysis Total 3 | . . 2 1 . . Derelict Logs Recovered 2 | . . 1 . 1 . Drone Launches . | . . . . . . Drone Recoveries . | . . . . . . Exploration | -11 -10 -10 -9 -9 -9 ------------- Run | Scr Mat Min Mat Min Exi Turns Passed 7166 | 104 433 790 2399 1069 2371 Spaces Moved 3529 | 24 228 481 960 654 1182 Core . | . . . . . . Treads 3529 | 24 228 481 960 654 1182 Legs . | . . . . . . Wheels . | . . . . . . Hover . | . . . . . . Flight . | . . . . . . Fastest Speed 160 | 160 160 160 160 160 160 Average Speed 171 | 160 160 160 183 160 174 Slowest Speed 240 | 160 160 160 240 160 240 Overloaded Moves . | . . . . . . Propulsion Burnouts . | . . . . . . Robots Hopped . | . . . . . . Cave-ins Triggered . | . . . . . . Exploration Rate (%) 67 | 3 41 98 86 99 78 Regions Visited 5 Branch Regions 3 Pre-discovered Areas 3 | . . 1 . 1 1 Known Exits Taken . | . . . . . . Unknown Exits Taken 5 | 1 1 1 1 1 . Scrap Searched 4 | . . 1 . 3 . Spaces Dug 9 | . 9 . . . . Terrain Destroyed 110 | . 57 24 26 . 3 Melee . | . . . . . . Projectile 1 | . . . . . 1 AOE 109 | . 57 24 26 . 2 Terrain Rammed . | . . . . . . Walls Destroyed . | . . . . . . Machines Disabled . | . . . . . . Actions | -11 -10 -10 -9 -9 -9 --------- Run | Scr Mat Min Mat Min Exi Total 4342 | 62 276 499 1392 671 1442 Wait 331 | 14 6 . 190 9 112 Move 3525 | 24 227 480 959 653 1182 Hop . | . . . . . . Pick Up 80 | 2 12 4 38 . 24 Fast Attach 24 | . 1 1 11 2 9 Attach 23 | . 1 . 11 . 11 Detach 2 | . 1 . . . 1 Swap 39 | 3 4 . 22 . 10 Drop 99 | 4 7 5 39 2 42 Fire 199 | 13 16 5 116 2 47 Melee 4 | . . . . . 4 Ram . | . . . . . . Kick . | . . . . . . Crush 16 | 2 1 4 6 3 . Escape Stasis . | . . . . . . Rewire . | . . . . . . Trap . | . . . . . . Miscellaneous . | . . . . . . Route ------- -11/Scrapyard -10/Materials (discovered 2 exits: *Mat / *Min) -10/Mines (discovered 2 exits: *Mat x2) -9/Materials (discovered 4 exits: [*Mat x3] / [*Min]) -9/Mines (discovered 4 exits: [*Mat x2] / *Exi / [*Zio]) -9/Exiles (discovered 1 exit: [*Min]) History --------- Turn | Location | Event 11 | -11/Scrapyard | Discovered new exit (range 2) 105 | -11/Scrapyard | Entered Materials 250 | -10/Materials | Discovered new exit (range 8) 307 | -10/Materials | Build established: Mutant 451 | -10/Materials | Discovered new exit (range 13) 538 | -10/Materials | Entered Mines 653 | -10/Mines | Met a Derelict testing a Signal Generator 660 | -10/Mines | Found Signal Generator 858 | -10/Mines | Discovered new exit (range 8) 889 | -10/Mines | Discovered new exit (range 9) 1328 | -10/Mines | Entered Materials 1328 | -9/Materials | Evolved 2 slots: Propulsion x1, Utility x1 1606 | -9/Materials | Lost 4 parts (1p2u1w) 1847 | -9/Materials | Discovered new exit (range 12) 1958 | -9/Materials | Repaired Lgt. Treads 1985 | -9/Materials | Repaired Lgt. Treads 2511 | -9/Materials | Discovered new exit (range 14) 2864 | -9/Materials | Destroyed 8 combat bots 2872 | -9/Materials | Lost 3 parts (1n2w) 3483 | -9/Materials | Discovered new exit (range 10) 3709 | -9/Materials | Discovered new exit (range 11) 3727 | -9/Materials | Entered Mines 3730 | -9/Mines | Received a Mining Laser from a helpful Derelict 3833 | -9/Mines | Discovered new exit (range 11) 3872 | -9/Mines | A Derelict revealed a hidden shortcut to a safe place 4107 | -9/Mines | Discovered new exit (range 9) 4235 | -9/Mines | Deemed a non-threat by the Exiles lab entrance 4235 | -9/Mines | Discovered new exit (range 5) 4460 | -9/Mines | Found a hidden stash of uninstalled traps 4796 | -9/Mines | Entered Exiles 4837 | -9/Exiles | Met 8R-AWN 4865 | -9/Exiles | Met EX-HEX 4916 | -9/Exiles | Met EX-BIN 4940 | -9/Exiles | Aligned with FarCom system 4941 | -9/Exiles | Given EX-Vault access code 4989 | -9/Exiles | Opened EX-Vault 5001 | -9/Exiles | Found Modified TNC 5005 | -9/Exiles | Found Deploy-a-Sentry 5008 | -9/Exiles | Found Deploy-a-Sentry 5010 | -9/Exiles | Found Deploy-a-Sentry 5016 | -9/Exiles | Found AWS/Thermal 5050 | -9/Exiles | Warned to stay clear of 0b10 Research branches 5108 | -9/Exiles | Met EX-DEC 5117 | -9/Exiles | Learned location of Zion (-7) 5365 | -9/Exiles | Discovered new exit (range 12) 6313 | -9/Exiles | Attacked by the Exiles 6387 | -9/Exiles | System corruption reached 10% 6488 | -9/Exiles | Core integrity fell below 50% 6511 | -9/Exiles | Destroyed 8R-AWN 7123 | -9/Exiles | Core integrity fell below 20% 7148 | -9/Exiles | Lost 3 parts (1n1u1w) 7167 | -9/Exiles | Destroyed by EX-DEC with AWS/EX-DEC Last Messages --------------- 07007_ System corrupted: Substantial component data lost. 07028_ System corrupted: Matter fused (-10). 07046_ ZNPFJKNZ%JYDSM O6BUN8M6|ZBKO3Z9S> 07062_ System corrupted: Component data lost. 07088_ System corrupted: Matter fused (-10). 07094_ Dropped AWS/Thermal. 07095_ Acquired AWS/Thermal. 07099_ Dropped AWS/Thermal. 07101_ ZX-C33 destroyed. 07104_ Acquired AWS/Thermal. 07114_ Minigun destroyed. 07115_ Dropped Minigun. 07116_ Med. Armor Plating destroyed. 07117_ Lgt. Treads destroyed. 07120_ KO-IG4(z) destroyed. 07121_ System corrupted: Component data lost. 07123_ Machine disabled. 07142_ Acquired 10 matter. 07146_ C2RCDSP JA:F<9OPJV0W9L# Map ----- +----------------------------------------------------+ | ???????????# """##???????????#"""" | | ???????????# ""#????????????#"" | | ??????????## ########???###"""" | | ??????????# ## ####""" | | ??????????## """" | | ???????????## | | ????????????# | | ????????????## | | ?????????????#" " "" | | ?????????????#"""" ""## ##""" " " | | ?????????????#"" ""#### #?####""" " | | ?????????????#" """"##??# #?????##""" | | ?????????????#""" """#??## ####????##? | | ?????????????## ""##??#! "!#??????? | | ??????????????#"" """##???#" !#??????? | | ??????????????##""" ##????#" "#??????? | | ???????????????##"""" ##?????#!!""!"#??????? | | ????????????????### #??????########??????? | | ??????????????????##### ##????????????????????? | | ??????????????????????## #?????????????????????? | | ???????????????????????# #?????????????????????? | | ???????????????????????# #?????????????????????? | | ???????????????????????# #?????????????????????? | | ???????????????????????# #?????????????????????? | | ???????????????????????# #?????????????????????? | | ???????????????????????# @ #?????????????????????? | | ???????????????????????# #?????????????????????? | | ???????????????????????# #?????????????????????? | | ???????????????????????# #?????????????????????? | | ?????????????##"?"###### [########??????????????? | | ?????????????"" """"" """""""#??"""#????????? | | ????????????"" = "#"" ""#????????? | | ??????????? [% " ""#????????? | | ??????????? * c " " "#????????? | | ??????????? " """#????????? | | ??????????? "" #"" ""#????????? | | ????????????"" " """" """""#?""""#????????? | | ?????????????##"""########"""######??????????????? | | ????????????????????????"" "???????????????????? | | ????????????????????????"" """??????????????????? | | ???????????????????????#"""""""??????????????????? | | ????????????????????????"" """"??????????????????? | | ?????????????????????????""""????????????????????? | | ??????????????????????????#??????????????????????? | | ?????????????????????????????????????????????????? | | ?????????????????????????????????????????????????? | | ?????????????????????????????????????????????????? | | ?????????????????????????????????????????????????? | | | | | +----------------------------------------------------+ Best States ------------- Heat Dissipation 28 Energy Generation 14 Energy Capacity 280 Matter Stores 300 Matter Capacity 300 Sight Range 16 Terrain Scan Density 10 Armor Coverage 300 Evasion (%) 40 Recoil Reduction 3 Item Schematics ----------------- None Robot Schematics ------------------ None Fabricated ------------ Nothing Alien Tech Used ----------------- None Achievements -------------- None Challenges ------------ None Game ------ Seed HeartSapperReactor Manual? 0 Play Time 00:46:03 Cumulative 300.5 hours Start 2022.04.24 @ 17:47:21 End 2022.04.24 @ 18:33:25 Sessions 1 Manual Loads 0 Difficulty Rogue Special Mode None Game No. 93 Rogue 93 Adventurer 0 Explorer 0 Win Type - Total 6 Types 3/1/0/0/2/0/0/0/0 Lore% 59 Gallery% 73 Achievement% 66 Wizard Run 0 Options --------- ASCII 0 Keyboard 0 Movement Arrows Keybinds 0 Fullscreen 0 Font 28/SmallcapsGlow Map View 72x54 Tactical HUD 1 Map Filters NONE Filters NONE Steam 1 RUN: 4b161c70-ff57-4563-b3f9-ddfbff2aa3d8